Cogmind - Beta 13 @@@ ROGUE MODE // 2024.03.17 @ 13:44:23 Player: Infomantis Result: Destroyed by Lightning with EMDS Performance ------------- Evolutions (4) 2000 Regions Visited (15) 3000 Robots Destroyed (128) 640 Value Destroyed (4803) 4803 Prototype IDs (31) 620 Alien Tech Used (0) 0 Bonus (4214) 4214 TOTAL SCORE: 15277 Bonus ------- High Alert Combat Kills 335 Follower Combat Kills 2397 Network Hubs Disabled 200 Met Data Miner 300 Built Enhanced Grunts 300 A7 Reached Mainframe 300 Met R17 at Cetus 500 Friendly Fire -118 Cogmind --------- Core Integrity 0/850 Matter 287/300 Energy 85/100 System Corruption 33% Temperature Cool (21) Movement Core (50) Location -6/Hub_04(d) Parts ------- > --- POWER (1) -------- (None) > --- PROPULSION (5) --- (None) > --- UTILITY (6) ------ Improved Hacking Suite Power Bank > --- WEAPON (3) ------- (None) > --- INVENTORY (5) ---- Enhanced Flexi-carbon Leg Improved Signal Interpreter Centrium Medium Armor Plating Improved Hardlight Generator Improved Hacking Suite Peak State ------------ > --- POWER ------------ Micro Nuclear Core Neutrino Core > --- PROPULSION ------- Carbon-fiber Leg Carbon-fiber Leg Flexi-carbon Leg Flexi-carbon Leg Enhanced Flexi-carbon Leg > --- UTILITY ---------- Improved Cooling System Large Storage Unit Centrium Medium Armor Plating Improved Hardlight Generator Improved Hacking Suite Power Bank > --- WEAPON ----------- Advanced Variable Charge Gun Advanced Variable Charge Gun Mini Assault Cannon > --- INVENTORY -------- Micro Antimatter Reactor Enhanced Flexi-carbon Leg Advanced Heat Sink Advanced Sensor Array Improved Signal Interpreter Reaction Control System Centrium Medium Armor Plating Centrium Medium Armor Plating Centrium Medium Armor Plating Improved Hacking Suite Thermic Laser Subdweller Shrapnel Launcher Heavy Rocket Launcher Multitool Phasing Sabre [Rating: 95] Favorites ----------- Power Improved Deuterium Engine Engine Improved Deuterium Engine Power Core Nuclear Core Reactor Micro Antimatter Reactor Propulsion Carbon-fiber Leg Treads Light Treads Leg Carbon-fiber Leg Utility Large Storage Unit Device Seismic Detector Storage Large Storage Unit Processor Improved Targeting Computer Hackware Hacking Suite Protection Improved Medium Armor Plating Weapon Advanced Beam Rifle Energy Gun Advanced Beam Rifle Energy Cannon Heavy Ion Cannon Ballistic Gun Barrage Gun Ballistic Cannon Flak Cannon Launcher Subdweller Shrapnel Launcher Special Weapon Mining Laser Special Melee Weapon Datajack Build | -11 -10 -10 -8 -7 -7 -7 -7 -6 -6 -6 -6 -6 -6 -6 -6 ------- Run | Yrd Mat Sub Mat Fac Low Low Dat Pro Fac Was Fac Ext Cet Arc Hub Slots Evolved 8 | . . . 4 2 . . . . 2 . . . . . . Power . | . . . . . . . . . . . . . . . . Propulsion 3 | . . . 1 1 . . . . 1 . . . . . . Utility 4 | . . . 2 1 . . . . 1 . . . . . . Weapon 1 | . . . 1 . . . . . . . . . . . . Parts Attached 171 | 7 14 16 14 14 7 7 2 9 12 1 12 35 5 3 13 Power 18 | 1 5 2 2 . . . . . 1 . . 5 . 1 1 Engine 14 | 1 5 2 1 . . . . . 1 . . 4 . . . Core 3 | . . . 1 . . . . . . . . 1 . 1 . Reactor 1 | . . . . . . . . . . . . . . . 1 Propulsion 35 | 2 2 3 3 5 . . . . 3 1 . 11 2 . 3 Treads 12 | 2 2 3 3 1 . . . . 1 . . . . . . Leg 23 | . . . . 4 . . . . 2 1 . 11 2 . 3 Wheel . | . . . . . . . . . . . . . . . . Hover . | . . . . . . . . . . . . . . . . Flight . | . . . . . . . . . . . . . . . . Utility 45 | 2 3 1 3 7 3 . . 4 6 . 4 7 1 2 2 Device 26 | 1 1 1 1 3 3 . . 3 3 . 1 6 . 2 1 Storage 3 | 1 2 . . . . . . . . . . . . . . Processor 2 | . . . 1 . . . . . . . 1 . . . . Hackware 4 | . . . . 2 . . . . 1 . . . . . 1 Protection 10 | . . . 1 2 . . . 1 2 . 2 1 1 . . Artifact . | . . . . . . . . . . . . . . . . Weapon 73 | 2 4 10 6 2 4 7 2 5 2 . 8 12 2 . 7 Energy Gun 17 | 2 2 2 1 . 1 . . 2 1 . . 3 2 . 1 Energy Cannon 1 | . . . . . . . . . . . . 1 . . . Ballistic Gun 17 | . 1 1 1 . 1 3 . 1 1 . 5 3 . . . Ballistic Cannon 15 | . . 3 2 2 . 1 . . . . . 5 . . 2 Launcher 12 | . . 1 . . 2 3 1 1 . . 1 . . . 3 Special Weapon 10 | . 1 3 2 . . . . 1 . . 2 . . . 1 Impact Weapon . | . . . . . . . . . . . . . . . . Slashing Weapon . | . . . . . . . . . . . . . . . . Piercing Weapon . | . . . . . . . . . . . . . . . . Special Melee Weapon 1 | . . . . . . . 1 . . . . . . . . Unidentified Prototypes 5 | . . . 1 . . . . . . . . 1 2 . 1 Corrupted Parts 1 | . . . . . . . . . . . . . . . 1 System Corruption 9 | . . . . . . . . . . . . . . . 9 Parts Lost 35 | . 2 2 . . 1 . . 3 1 2 . 6 . . 18 Power 6 | . 1 . . . . . . . . . . 1 . . 4 Propulsion 11 | . . 2 . . . . . . . . . 2 . . 7 Utility 12 | . 1 . . . 1 . . 2 1 1 . 2 . . 4 Weapon 6 | . . . . . . . . 1 . 1 . 1 . . 3 Highest Loss Streak 11 | . 2 2 . . 1 . . 3 1 2 . 4 . . 11 To Critical Strikes . | . . . . . . . . . . . . . . . . Average Slot Usage (%) 98 | . 98 99 94 99 100 100 100 96 98 92 99 97 100 100 94 Engine 7 | . 13 14 7 . . . . . 5 6 6 10 11 10 1 Core 3 | . . . 1 7 7 7 7 7 . . . 5 5 6 9 Treads 10 | . 27 27 27 15 . . . . 4 . . . . . . Leg 18 | . . . . 13 30 30 30 30 27 31 33 28 29 29 28 Device 14 | . 13 14 9 8 15 15 15 11 16 17 13 18 23 23 19 Storage 8 | . 14 14 9 7 7 7 7 7 6 6 6 5 5 5 5 Processor 2 | . . . 5 7 7 7 7 3 . . 5 . . . . Hackware 2 | . . . . 6 . . . . 5 6 6 3 . . 3 Protection 4 | . . . 9 5 7 7 7 10 8 6 5 4 5 5 5 Energy Gun 8 | . 12 7 6 7 6 7 7 10 13 13 13 4 5 11 11 Ballistic Gun 5 | . 13 14 2 . 1 5 4 3 4 3 3 3 . . . Ballistic Cannon 6 | . . 3 16 14 13 6 7 7 1 . . 6 5 5 5 Naked Turns . | . . . . . . . . . . . . . . . . Heaviest Build 85 | 12 31 35 44 46 57 54 52 55 60 50 51 83 83 85 85 Greatest Support 98 | 40 40 40 60 80 64 64 64 64 79 84 84 86 85 85 98 Greatest Overweight (x) 1 | . 1 . . . 1 . . . . . . 1 . . 1 Average Overweight (x) . | . . . . . . . . . . . . . . . . Largest Inventory Capacity 15 | 8 15 15 15 15 15 15 15 15 15 15 15 15 15 15 15 Average Capacity 14 | 7 13 15 15 15 15 15 15 15 15 15 15 15 15 15 14 Most Carried 15 | 8 15 15 15 15 15 15 15 15 15 15 15 15 15 15 15 Average Carried 14 | 4 12 14 14 14 14 15 15 14 14 14 14 14 14 14 14 Final Capacity 15 | 8 15 15 15 15 15 15 15 15 15 15 15 15 15 15 5 Final Carried 15 | 8 15 15 15 15 15 15 15 13 15 15 15 15 14 15 5 Class Distribution -------------------- 29% | Mutant 27% | Gunner 20% | Scavenger-Tank 11% | Commander-Tank 7% | Tank Dominant Class ---------------- Mutant | -10/Materials Mutant | -10/Subcaves Gunner | -8/Materials Gunner | -7/Factory Gunner | -7/Lower Caves Gunner | -7/Lower Caves Gunner | -7/Data Miner Tank | -6/Proximity Caves Tank | -6/Factory Scavenger-Tank | -6/Waste Scavenger-Tank | -6/Factory Commander-Tank | -6/Extension Scavenger-Tank | -6/Cetus Scavenger-Tank | -6/Archives Scavenger-Tank | -6/Hub_04(d) Resources | -11 -10 -10 -8 -7 -7 -7 -7 -6 -6 -6 -6 -6 -6 -6 -6 ----------- Run | Yrd Mat Sub Mat Fac Low Low Dat Pro Fac Was Fac Ext Cet Arc Hub Matter Collected 3970 | 270 139 425 235 308 260 88 . 148 449 . 202 1028 110 36 272 Remotely . | . . . . . . . . . . . . . . . . Salvage Created 4399 | 79 468 536 188 307 294 111 . 125 628 . 271 703 137 301 251 Parts 242 | 10 32 35 11 20 17 12 . 8 25 . 11 31 5 19 6 Haulers Intercepted 4 | . 2 . . 1 . . . . 1 . . . . . . Recyclers Shooed 3 | . 2 . . . . . . . . . 1 . . . . Parts Field Recycled . | . . . . . . . . . . . . . . . . Retrieved Matter . | . . . . . . . . . . . . . . . . Parts Self-Destructed 47 | . . 13 . . 18 8 . 8 . . . . . . . Prevented 2 | . . 1 . . . . . 1 . . . . . . . Kills | -11 -10 -10 -8 -7 -7 -7 -7 -6 -6 -6 -6 -6 -6 -6 -6 ------- Run | Yrd Mat Sub Mat Fac Low Low Dat Pro Fac Was Fac Ext Cet Arc Hub Combat Hostiles Destroyed 97 | . 9 14 7 6 11 8 . 5 8 . 5 13 3 1 7 Guns 52 | . 9 10 . 4 2 2 . 2 7 . 5 7 2 1 1 Cannons 22 | . . 1 7 2 . 1 . 2 . . . 6 . . 3 AOE 21 | . . 3 . . 9 5 . 1 . . . . . . 3 Classes Destroyed 17 | 1 6 3 2 1 1 . . 1 1 . . 1 . . . Worker 4 | . . . . . . . . . 2 . 1 1 . . . Builder 1 | . . . . . . . . . . . . 1 . . . Tunneler 4 | 4 . . . . . . . . . . . . . . . Hauler 4 | . 2 . . 1 . . . . 1 . . . . . . Recycler 5 | . 2 . . 1 . . . . 1 . . 1 . . . Operator 9 | . 1 . 1 . . . . . . . . 1 . 6 . Watcher 4 | . 1 . . . . . . . 1 . 1 1 . . . Swarmer 35 | . 6 4 3 4 2 5 . 2 3 . . 3 1 . 2 Grunt 26 | . 3 2 2 . 6 1 . . 2 . 3 5 . . 2 Duelist 2 | . . . . . 2 . . . . . . . . . . Sentry 13 | . . . 1 1 1 1 . 1 . . 1 5 . 1 1 Hunter 3 | . . . 1 . . . . . 2 . . . . . . Programmer 5 | . . . . 1 . 1 . 1 1 . 1 . . . . Behemoth 1 | . . . . . . . . 1 . . . . . . . Cetus Guard 2 | . . . . . . . . . . . . . 2 . . Lightning 2 | . . . . . . . . . . . . . . . 2 Artisan 1 | . . 1 . . . . . . . . . . . . . Cobbler 1 | . . 1 . . . . . . . . . . . . . Subdweller 8 | . . 8 . . . . . . . . . . . . . Best Kill Streak 9 | 1 4 4 3 5 9 4 . 3 5 . 4 3 1 2 4 Combat Bots Only 9 | . 3 4 3 4 9 4 . 3 3 . 3 3 1 1 4 Max Kills in Single Turn 3 | 1 1 3 1 1 3 3 . 1 2 . 1 1 1 1 2 Gunslinging . | . . . . . . . . . . . . . . . . Exploded 3 | . . 3 . . 3 3 . 1 . . . . . . 2 Melee . | . . . . . . . . . . . . . . . . Uniques/NPCs Destroyed . | . . . . . . . . . . . . . . . . Combat | -11 -10 -10 -8 -7 -7 -7 -7 -6 -6 -6 -6 -6 -6 -6 -6 -------- Run | Yrd Mat Sub Mat Fac Low Low Dat Pro Fac Was Fac Ext Cet Arc Hub Hostile Shots Fired 883 | . 50 43 52 30 23 19 . 77 46 1 39 326 12 . 165 Missed 266 | . 10 10 14 10 3 7 . 31 7 . 27 101 3 . 43 Damage Taken 8184 | . 388 574 375 261 369 138 . 758 664 42 186 1341 236 17 2835 Core 1276 | . 52 134 18 13 24 13 . 171 53 . . 139 32 . 627 Absorbed by Shields 1570 | . . . . . 56 . . 36 . . . 1119 113 6 240 Ignored by Resistances 9 | . . . . . . . . . . . 9 . . . . Regen/Repaired (Parts) 49 | . . . . 49 . . . . . . . . . . . Core Remaining (%) 72 | 100 . 25 96 . . . . 68 . . . . . . . Volleys Fired 347 | 8 68 54 25 14 8 11 . 13 25 . 15 49 9 21 27 Largest 3 | 2 2 2 3 3 2 3 . 3 3 . 3 3 3 3 3 Hottest 240 | 90 100 100 144 144 105 144 . 149 179 . 179 234 240 208 208 Shots Fired 752 | 16 115 97 50 36 12 21 . 37 69 . 40 136 23 44 56 Gun 502 | 16 94 78 11 14 4 8 . 17 69 . 38 72 9 43 29 Cannon 195 | . . 10 39 22 4 7 . 13 . . . 64 14 1 21 Launcher 23 | . . 1 . . 4 6 . 5 . . 1 . . . 6 Special 32 | . 21 8 . . . . . 2 . . 1 . . . . Kinetic 357 | . 44 53 39 22 8 12 . 23 21 . 10 89 9 1 26 Thermal 353 | 16 71 11 11 14 4 3 . 13 48 . 29 47 14 43 29 Explosive 10 | . . 1 . . . 6 . 1 . . 1 . . . 1 Electromagnetic 32 | . . 32 . . . . . . . . . . . . . Robot Hit Streak 25 | 5 11 25 8 8 5 7 . 8 10 . 13 16 6 10 8 Robot Miss Streak 8 | 4 3 3 8 5 3 5 . 3 3 . 4 6 3 2 2 Penetration Max 1 | . . . . . . . . . . . . 1 . . . Secondary Targets 5 | . . . . . . . . . 2 . . 3 . . . Max Gunslinging Chain 1 | . . . . . . . . . 1 . . 1 . . . Shots Hit Robots 461 | 7 56 67 30 23 6 10 1 30 50 . 27 80 15 26 33 Core Hits 303 | 4 27 28 21 16 22 15 . 18 28 . 29 46 8 14 27 Critical Kills 4 | . . . . . . . . . . . . 4 . . . Critical Parts Destroyed 8 | . . . . . . . . . . . . 8 . . . Critical Strikes 27 | . 2 1 1 2 . 1 . 1 2 . . 16 . . 1 Burn 9 | . 2 . 1 1 . 1 . 1 2 . . 1 . . . Destroy 15 | . . . . . . . . . . . . 15 . . . Blast 2 | . . . . 1 . . . . . . . . . . 1 Corrupt 1 | . . 1 . . . . . . . . . . . . . Melee Attacks 1 | . . . . . . . 1 . . . . . . . . Impact . | . . . . . . . . . . . . . . . . Slashing . | . . . . . . . . . . . . . . . . Piercing . | . . . . . . . . . . . . . . . . Sneak Attacks 1 | . . . . . . . 1 . . . . . . . . Combat Hostiles . | . . . . . . . . . . . . . . . . Follow-up Attacks . | . . . . . . . . . . . . . . . . Damage Inflicted 12332 | 87 610 1123 503 483 849 793 . 784 1128 . 658 2009 481 714 2110 Guns 6874 | 83 610 853 100 250 40 74 . 262 1126 . 658 1182 218 714 704 Cannons 2487 | . . 115 403 233 46 89 . 276 . . . 766 263 . 296 Explosions 2848 | . . 155 . . 763 630 . 222 . . . . . . 1078 Melee . | . . . . . . . . . . . . . . . . Ramming 99 | 4 . . . . . . . . 2 . . 61 . . 32 Kinetic 5797 | . 208 612 403 233 809 123 . 491 209 . 174 1228 145 . 1162 Thermal 5053 | 83 402 22 100 250 40 40 . 241 917 . 484 720 336 714 704 Explosive 1049 | . . 155 . . . 630 . 52 . . . . . . 212 Electromagnetic 334 | . . 334 . . . . . . . . . . . . . Impact . | . . . . . . . . . . . . . . . . Slashing . | . . . . . . . . . . . . . . . . Piercing . | . . . . . . . . . . . . . . . . Highest Corruption 32 | . . . . 1 . . . 1 . . 1 1 1 1 32 Average Corruption 2 | . . . . 1 . . . 1 . . 1 1 1 1 12 Corruption Purged 4 | . . . . 1 . . . . . . 1 1 . 1 . Corruption Blocked . | . . . . . . . . . . . . . . . . Effects 23 | . . . . 1 . . . . . . . 5 1 2 14 Message Errors 3 | . . . . . . . . . . . . 1 . 1 1 Matter Fused 5 | . . . . 1 . . . . . . . 1 . . 3 Heat Flow Errors 2 | . . . . . . . . . . . . 1 1 . . Energy Discharges 1 | . . . . . . . . . . . . . . . 1 Parts Rejected 2 | . . . . . . . . . . . . . . . 2 Data Loss (minor) 1 | . . . . . . . . . . . . . . . 1 Data Loss (major) 3 | . . . . . . . . . . . . 2 . . 1 Misfires 2 | . . . . . . . . . . . . . . 1 1 Misdirections 1 | . . . . . . . . . . . . . . . 1 Weapon Failures 3 | . . . . . . . . . . . . . . . 3 Overload Shots 1 | . . . . . . . . . . . . . 1 . . Overflow Damage 145 | . . . 4 13 8 65 . . . . . . . . 55 Projectiles 34 | . . . 4 13 . . . . . . . . . . 17 Explosions 111 | . . . . . 8 65 . . . . . . . . 38 Melee . | . . . . . . . . . . . . . . . . Knockbacks 32 | . . 1 9 10 1 2 . 3 . . . 1 . . 5 Impact 2 | . . . . . . . . . . . . . . . 2 Kinetic 30 | . . 1 9 10 1 2 . 3 . . . 1 . . 3 Secondary . | . . . . . . . . . . . . . . . . Self-Inflicted Damage 184 | . . . . . 21 . . . . . 27 . . . 136 Shots 5 | . . . . . 1 . . . . . 1 . . . 3 Rammed 1 | 1 . . . . . . . . . . . . . . . Targets Rammed 11 | 1 . . . . . . . . 1 . . 3 . . 6 Kicked 10 | . . . . . . . . . 1 . . 3 . . 6 Crushed . | . . . . . . . . . . . . . . . . Highest Temperature 575 | 90 156 20 418 234 20 21 . 39 126 . 185 575 158 108 305 Average Temperature 88 | 35 39 5 166 66 11 11 . 13 47 . 54 160 48 35 121 Received Heat Transfer 1544 | . 108 135 45 . 120 24 . 94 72 . 48 471 28 . 399 Effects 22 | . . . 1 . . . . . . . . 21 . . . Shutdowns 7 | . . . . . . . . . . . . 7 . . . Energy Bleed 6 | . . . . . . . . . . . . 6 . . . Interference 3 | . . . 1 . . . . . . . . 2 . . . Matter Decay 3 | . . . . . . . . . . . . 3 . . . Damage (minor) 1 | . . . . . . . . . . . . 1 . . . Damage (major) 2 | . . . . . . . . . . . . 2 . . . Siege Activations . | . . . . . . . . . . . . . . . . Robots Corrupted . | . . . . . . . . . . . . . . . . Combat Hostiles . | . . . . . . . . . . . . . . . . Parts Fried 3 | . . . . . . . . . . . . 3 . . . Impact Corruptions 2 | . . . . . . . . . . . . 2 . . . Robots Melted 2 | . . . . . . . . . 1 . . . 1 . . Combat Hostiles 2 | . . . . . . . . . 1 . . . 1 . . Parts Melted 19 | 1 1 . . 1 . . . . 7 . 2 4 2 1 . Heat Transferred 10179 | 235 1320 25 259 518 74 148 . 690 2038 . 1021 1669 407 962 813 Parts Sabotaged . | . . . . . . . . . . . . . . . . Parts Stolen . | . . . . . . . . . . . . . . . . Parts Stripped . | . . . . . . . . . . . . . . . . Power Chain Reactions . | . . . . . . . . . . . . . . . . Alert | -11 -10 -10 -8 -7 -7 -7 -7 -6 -6 -6 -6 -6 -6 -6 -6 ------- Run | Yrd Mat Sub Mat Fac Low Low Dat Pro Fac Was Fac Ext Cet Arc Hub Peak Influence 1193 | 20 223 . 223 128 . . . . 122 30 198 742 788 563 1193 Initial 368 | . 13 . 72 54 . . . . . 30 7 96 368 315 196 Average 200 | 7 91 . 114 60 . . . . 57 22 45 220 602 526 944 Maximum Alert Level 4 | . 1 . 1 . . . . . . . . 3 3 2 4 Low Security (%) 75 | 100 85 . 93 100 . . . . 100 100 100 69 . . . Level 1 7 | . 14 . 6 . . . . . . . . 14 12 4 5 Level 2 10 | . . . . . . . . . . . . 12 51 95 16 Level 3 4 | . . . . . . . . . . . . 2 36 . 36 Level 4 2 | . . . . . . . . . . . . . . . 40 Level 5 . | . . . . . . . . . . . . . . . . High Security . | . . . . . . . . . . . . . . . . Max Security . | . . . . . . . . . . . . . . . . Squads Dispatched 18 | . 1 . 2 3 . . . . 1 . 4 1 . . 6 Investigation 8 | . . . 1 2 . . . . 1 . 2 . . . 2 Extermination 2 | . . . . 1 . . . . . . 1 . . . . Reinforcement 6 | . 1 . 1 . . . . . . . 1 1 . . 2 Assault 2 | . . . . . . . . . . . . . . . 2 Garrison . | . . . . . . . . . . . . . . . . Intercept . | . . . . . . . . . . . . . . . . Searches Triggered . | . . . . . . . . . . . . . . . . Data Miner Redirects 1 | . . . . . . . . . . . . . . . 1 Construction Impeded . | . . . . . . . . . . . . . . . . Haulers Reinforced 1 | . . . . . . . . . . . 1 . . . . Active Scanning Responses . | . . . . . . . . . . . . . . . . Cargo Convoy Interrupts . | . . . . . . . . . . . . . . . . Stealth | -11 -10 -10 -8 -7 -7 -7 -7 -6 -6 -6 -6 -6 -6 -6 -6 --------- Run | Yrd Mat Sub Mat Fac Low Low Dat Pro Fac Was Fac Ext Cet Arc Hub Distress Signals 13 | . 1 . . 1 . . . . 1 . . 5 2 . 3 Communications Jammed . | . . . . . . . . . . . . . . . . Distress Signals . | . . . . . . . . . . . . . . . . Times Spotted 202 | . 15 15 11 11 13 7 . 4 10 5 8 39 14 11 39 Peak Tracking Total 15 | . 4 5 4 6 9 4 . 2 4 5 3 6 5 1 15 Tactical Retreats 6 | . . 1 . 1 1 . . . . . 1 . . . 2 Traps | -11 -10 -10 -8 -7 -7 -7 -7 -6 -6 -6 -6 -6 -6 -6 -6 ------- Run | Yrd Mat Sub Mat Fac Low Low Dat Pro Fac Was Fac Ext Cet Arc Hub Traps Triggered 7 | . 1 1 1 1 . . . . 1 . . 2 . . . Indirectly . | . . . . . . . . . . . . . . . . Trap Hack Attempts . | . . . . . . . . . . . . . . . . Triggered . | . . . . . . . . . . . . . . . . Disarmed . | . . . . . . . . . . . . . . . . Reprogrammed . | . . . . . . . . . . . . . . . . Reused . | . . . . . . . . . . . . . . . . Traps Extracted . | . . . . . . . . . . . . . . . . Installed . | . . . . . . . . . . . . . . . . Triggered 2 | . . . . . . . . 2 . . . . . . . Machines | -11 -10 -10 -8 -7 -7 -7 -7 -6 -6 -6 -6 -6 -6 -6 -6 ---------- Run | Yrd Mat Sub Mat Fac Low Low Dat Pro Fac Was Fac Ext Cet Arc Hub Machines Disabled 19 | . . 1 2 . 1 . . . . . 3 2 1 3 6 Max in Single Turn 3 | . . 1 1 . 1 . . . . . 2 1 1 2 3 Network Hub 1 | . . . . . . . . . . . . . . . 1 Machines Repaired 1 | . . . 1 . . . . . . . . . . . . Machines Dismantled . | . . . . . . . . . . . . . . . . Machines Sabotaged 1 | . . . . . . . . . . . . . . . 1 Overloaded Fab Kills . | . . . . . . . . . . . . . . . . Hacking | -11 -10 -10 -8 -7 -7 -7 -7 -6 -6 -6 -6 -6 -6 -6 -6 --------- Run | Yrd Mat Sub Mat Fac Low Low Dat Pro Fac Was Fac Ext Cet Arc Hub Machines Accessed 36 | . 5 2 4 6 . 1 4 . 3 . 3 3 1 . 4 Terminals 21 | . 5 . 3 2 . . . . 1 . 2 3 1 . 4 Fabricators 2 | . . . . 2 . . . . . . . . . . . Repair Stations 3 | . . . 1 1 . . . . . . 1 . . . . Recycling Units 1 | . . . . . . . . . 1 . . . . . . Scanalyzers 1 | . . . . 1 . . . . . . . . . . . Garrison Access 1 | . . . . . . . . . 1 . . . . . . Total Hacks 98 | . 17 2 8 14 . 1 28 . 7 . 7 5 1 . 8 Successful 58 | . 8 2 2 10 . 1 28 . 1 . 3 2 . . 1 Failed 40 | . 9 . 6 4 . . . . 6 . 4 3 1 . 7 Catastrophic 14 | . 1 . 2 2 . . . . 1 . 1 2 . . 5 Database Lockouts . | . . . . . . . . . . . . . . . . Manual 24 | . 14 . 1 2 . . . . . . 3 2 1 . 1 Terminals 45 | . 17 . 5 3 . . . . 2 . 4 5 1 . 8 Fabricators 4 | . . . . 4 . . . . . . . . . . . Repair Stations 9 | . . . 3 3 . . . . . . 3 . . . . Recycling Units 3 | . . . . . . . . . 3 . . . . . . Scanalyzers 4 | . . . . 4 . . . . . . . . . . . Garrison Access 2 | . . . . . . . . . 2 . . . . . . Terminal Hacks 42 | . 5 2 . 2 . 1 28 . . . 2 2 . . . Record 12 | . . 1 . . . . 11 . . . . . . . . Part Schematic 10 | . . . . . . . 10 . . . . . . . . Robot Schematic 4 | . . . . . . . 4 . . . . . . . . Robot Analysis 1 | . . . . . . . . . . . . 1 . . . Prototype ID Bank 4 | . . . . . . . 3 . . . 1 . . . . Open Door 1 | . . . . . . 1 . . . . . . . . . Open DSF 1 | . . . . 1 . . . . . . . . . . . Branch Access Points 2 | . . . . 1 . . . . . . 1 . . . . Emergency Access Points 1 | . 1 . . . . . . . . . . . . . . Terminal Index 2 | . 1 . . . . . . . . . . 1 . . . Maintenance Status 1 | . 1 . . . . . . . . . . . . . . Registered Components 1 | . 1 . . . . . . . . . . . . . . Zone Layout 1 | . 1 . . . . . . . . . . . . . . Derelict Proto ID Bank 1 | . . 1 . . . . . . . . . . . . . Fabricator Hacks 1 | . . . . 1 . . . . . . . . . . . Build 1 | . . . . 1 . . . . . . . . . . . Repair Station Hacks 4 | . . . 1 2 . . . . . . 1 . . . . Scan Component 3 | . . . 1 1 . . . . . . 1 . . . . Repair 1 | . . . . 1 . . . . . . . . . . . Recycling Unit Hacks 1 | . . . . . . . . . 1 . . . . . . Retrieve Matter 1 | . . . . . . . . . 1 . . . . . . Scanalyzer 4 | . . . . 4 . . . . . . . . . . . Insert Component 2 | . . . . 2 . . . . . . . . . . . Analyze 2 | . . . . 2 . . . . . . . . . . . Garrison Access Hacks . | . . . . . . . . . . . . . . . . Unauthorized Hacks 6 | . 3 . 1 1 . . . . . . . . . . 1 Terminals 5 | . 3 . 1 . . . . . . . . . . . 1 Assimilate 1 | . 1 . . . . . . . . . . . . . . Botnet 1 | . 1 . . . . . . . . . . . . . . Operators 2 | . 1 . 1 . . . . . . . . . . . . Sabotage 1 | . . . . . . . . . . . . . . . 1 Fabricators 1 | . . . . 1 . . . . . . . . . . . Haulers 1 | . . . . 1 . . . . . . . . . . . Repair Stations . | . . . . . . . . . . . . . . . . Recycling Units . | . . . . . . . . . . . . . . . . Scanalyzers . | . . . . . . . . . . . . . . . . Garrison Access . | . . . . . . . . . . . . . . . . Data Cores Recovered 1 | . . . 1 . . . . . . . . . . . . Used 1 | . . . 1 . . . . . . . . . . . . Hacking Detections 22 | . 4 . 3 6 . . . . 3 . 1 2 . . 3 Full Trace Events 5 | . . . . 1 . . . . 1 . 2 . . . 1 Feedback Events 3 | . . . . . . . . . . . 2 . . . 1 Corruption 3 | . . . . . . . . . . . 2 . . . 1 Feedback Blocked . | . . . . . . . . . . . . . . . . Robot Schematics Acquired 4 | . . . . . . . 4 . . . . . . . . Robots Built . | . . . . . . . . . . . . . . . . Authchips . | . . . . . . . . . . . . . . . . Time . | . . . . . . . . . . . . . . . . Total Robot Build Rating . | . . . . . . . . . . . . . . . . Part Schematics Acquired 12 | . . . . 2 . . 10 . . . . . . . . Parts Built 2 | . . . . 2 . . . . . . . . . . . Authchips . | . . . . . . . . . . . . . . . . Time 47 | . . . . 47 . . . . . . . . . . . Total Part Build Rating 10 | . . . . 10 . . . . . . . . . . . Parts Repaired 1 | . . . . 1 . . . . . . . . . . . Time 16 | . . . . 16 . . . . . . . . . . . Parts Recycled . | . . . . . . . . . . . . . . . . Recycled Matter . | . . . . . . . . . . . . . . . . Retrieved Matter . | . . . . . . . . . . . . . . . . Retrieved Components . | . . . . . . . . . . . . . . . . Parts Scanalyzed 2 | . . . . 2 . . . . . . . . . . . Part Schematics Acquired 2 | . . . . 2 . . . . . . . . . . . Parts Damaged . | . . . . . . . . . . . . . . . . Bothacking | -11 -10 -10 -8 -7 -7 -7 -7 -6 -6 -6 -6 -6 -6 -6 -6 ------------ Run | Yrd Mat Sub Mat Fac Low Low Dat Pro Fac Was Fac Ext Cet Arc Hub Used RIF Installer . | . . . . . . . . . . . . . . . . Robots Hacked 1 | . . . . . . . 1 . . . . . . . . Non-combat . | . . . . . . . . . . . . . . . . Combat 1 | . . . . . . . 1 . . . . . . . . Robot Hacks Applied 1 | . . . . . . . 1 . . . . . . . . parse_system 1 | . . . . . . . 1 . . . . . . . . Relay Couplers Released . | . . . . . . . . . . . . . . . . Fabnet Peak Effective % . | . . . . . . . . . . . . . . . . Robots Rewired 30 | . . . . . 2 . . . . . . 28 . . . Allies Hacked . | . . . . . . . . . . . . . . . . Hacks Repelled . | . . . . . . . . . . . . . . . . Allies | -11 -10 -10 -8 -7 -7 -7 -7 -6 -6 -6 -6 -6 -6 -6 -6 -------- Run | Yrd Mat Sub Mat Fac Low Low Dat Pro Fac Was Fac Ext Cet Arc Hub Total Allies 47 | . . . . . 2 . . . . . . 40 5 . . Largest Group 23 | . . . . . 2 . . . . . . 23 23 16 14 Highest-Rated Group 907 | . . . . . 46 . . . . . . 772 907 907 727 Highest-Rated Ally 159 | . . . . . 30 . . . . . . 159 159 149 96 Total Orders . | . . . . . . . . . . . . . . . . Ally Attacks 430 | . . . . . 8 . . . . . . 185 96 24 117 Total Damage 11893 | . . . . . 122 . . . . . . 3220 2253 638 5660 Kills 73 | . . . . . 2 . . . . . . 24 14 3 30 Allies Corrupted 3 | . . . . . . . . . . . . 1 . . 2 Allies Melted . | . . . . . . . . . . . . . . . . Intel | -11 -10 -10 -8 -7 -7 -7 -7 -6 -6 -6 -6 -6 -6 -6 -6 ------- Run | Yrd Mat Sub Mat Fac Low Low Dat Pro Fac Was Fac Ext Cet Arc Hub Robot Analysis Total 1 | . . . . . . . . . . . . 1 . . . Derelict Logs Recovered 4 | . . . . . . 3 . 1 . . . . . . . Drone Launches . | . . . . . . . . . . . . . . . . Drone Recoveries . | . . . . . . . . . . . . . . . . Exploration | -11 -10 -10 -8 -7 -7 -7 -7 -6 -6 -6 -6 -6 -6 -6 -6 ------------- Run | Yrd Mat Sub Mat Fac Low Low Dat Pro Fac Was Fac Ext Cet Arc Hub Turns Passed 11179 | 181 1089 1973 617 1086 892 573 145 428 636 143 639 1723 269 364 421 Spaces Moved 6532 | 90 442 1048 316 682 684 434 116 301 409 109 429 855 173 184 260 Core 7 | 5 . . . . . . . . . . . . . . 2 Treads 2183 | 85 442 1048 316 292 . . . . . . . . . . . Legs 4342 | . . . . 390 684 434 116 301 409 109 429 855 173 184 258 Wheels . | . . . . . . . . . . . . . . . . Hover . | . . . . . . . . . . . . . . . . Flight . | . . . . . . . . . . . . . . . . Fastest Speed 50 | 50 160 160 160 120 120 122 122 122 122 122 122 120 120 120 50 Average Speed 135 | 153 160 160 160 137 121 122 122 122 122 122 122 129 120 120 120 Slowest Speed 240 | 160 240 160 160 160 190 122 122 122 122 122 122 190 120 120 190 Overloaded Moves . | . . . . . . . . . . . . . . . . Propulsion Burnouts . | . . . . . . . . . . . . . . . . Robots Hopped . | . . . . . . . . . . . . . . . . Cave-ins Triggered . | . . . . . . . . . . . . . . . . Exploration Rate (%) 50 | 5 68 43 24 21 75 70 75 53 11 77 11 86 68 81 37 Regions Visited 15 Branch Regions 9 Pre-discovered Areas 2 | . . . . . . . 1 1 . . . . . . . Known Exits Taken 3 | . . . . 1 . 1 . . . . 1 . . . . Unknown Exits Taken 10 | 1 1 1 1 . 1 . 1 1 . . . 1 1 1 . Scrap Searched 10 | . . 7 . . 2 1 . . . . . . . . . Spaces Dug 9 | . . 6 1 . . . . . . . . . . . 2 Terrain Destroyed 257 | . 1 7 4 . 45 40 . 35 . . 12 29 . 3 81 Melee . | . . . . . . . . . . . . . . . . Projectile 44 | . 1 1 4 . . . . . . . . 29 . 3 6 AOE 213 | . . 6 . . 45 40 . 35 . . 12 . . . 75 Terrain Rammed . | . . . . . . . . . . . . . . . . Walls Destroyed . | . . . . . . . . . . . . . . . . Machines Disabled . | . . . . . . . . . . . . . . . . Actions | -11 -10 -10 -8 -7 -7 -7 -7 -6 -6 -6 -6 -6 -6 -6 -6 --------- Run | Yrd Mat Sub Mat Fac Low Low Dat Pro Fac Was Fac Ext Cet Arc Hub Total 8150 | 113 677 1237 385 803 729 455 118 329 494 119 504 1362 220 288 317 Wait 635 | . 128 89 9 74 16 4 . 6 20 9 43 141 22 71 3 Move 6518 | 89 441 1047 315 681 683 433 115 300 409 108 428 854 172 183 260 Hop . | . . . . . . . . . . . . . . . . Pick Up 94 | 8 15 15 9 8 4 . . 1 14 1 1 9 3 4 2 Fast Attach 51 | 7 3 1 3 6 . . . . 2 . 3 17 3 2 4 Attach 30 | . 3 2 2 1 2 . . 3 5 1 . 7 . . 4 Detach 2 | . . . . . . . . . . . . 2 . . . Swap 90 | . 8 13 9 7 5 7 2 6 5 . 9 11 2 1 5 Drop 113 | . 11 16 11 12 3 . . . 13 . 3 24 9 6 5 Fire 347 | 8 68 54 25 14 8 11 . 13 25 . 15 49 9 21 27 Melee 1 | . . . . . . . 1 . . . . . . . . Ram . | . . . . . . . . . . . . . . . . Kick 10 | . . . . . . . . . 1 . . 3 . . 6 Crush 1 | 1 . . . . . . . . . . . . . . . Escape Stasis 10 | . . . . . . . . . . . . 10 . . . Rewire 243 | . . . . . 8 . . . . . . 235 . . . Trap . | . . . . . . . . . . . . . . . . Miscellaneous 5 | . . . 2 . . . . . . . 2 . . . 1 Route ------- -11/Scrapyard -10/Materials (discovered 3 exits: [*Mat] / [*Min] / *Sub) -10/Subcaves (discovered 2 exits: *Mat x2) -8/Materials -7/Factory (discovered 3 exits: *Fac / *Low x2) -7/Lower Caves -7/Lower Caves (discovered 2 exits: *Fac / *Dat) -7/Data Miner -6/Proximity Caves -6/Factory (discovered 3 exits: Fac / Low / *Ext) -6/Waste -6/Factory (discovered 5 exits: *Fac / *Low x2 / *Ext x2) -6/Extension (discovered 2 exits: *Fac / *Cet) -6/Cetus (discovered 2 exits: *Fac / [*Arc]) -6/Archives (discovered 3 exits: *Fac / *Hub x2) -6/Hub_04(d) History --------- Turn | Location | Event 9 | -11/Scrapyard | Discovered new exit (range 16) 182 | -11/Scrapyard | Entered Materials 304 | -10/Materials | Build established: Mutant 555 | -10/Materials | Discovered new exit (range 15) 888 | -10/Materials | Discovered new exit (range 16) 1262 | -10/Materials | Discovered new exit (range 3) 1271 | -10/Materials | Entered Subcaves 1665 | -10/Subcaves | Visited Clippyterm 2388 | -10/Subcaves | Discovered new exit (range 13) 2636 | -10/Subcaves | Ambushed by angry Subdweller bent on revenge 2641 | -10/Subcaves | Core integrity fell below 50% 2856 | -10/Subcaves | Discovered new exit (range 8) 3016 | -10/Subcaves | Visited 4L-MR0's lab 3038 | -10/Subcaves | Found Power Bank 3186 | -10/Subcaves | Disturbed a concealed Subdweller 3244 | -10/Subcaves | Entered Materials 3244 | -8/Materials | Evolved 4 slots: Propulsion x1, Utility x2, Weapon x1 3681 | -8/Materials | Discovered new exit (range 6) 3797 | -8/Materials | Build established: Gunner 3861 | -8/Materials | Entered Factory 3861 | -7/Factory | Evolved 2 slots: Propulsion x1, Utility x1 3912 | -7/Factory | Discovered new exit (range 15) 4169 | -7/Factory | Identified exit to DSF 4204 | -7/Factory | Repaired Battle Cannon 4419 | -7/Factory | Fabricated Arm. Leg (x2) 4693 | -7/Factory | Identified exit to Lower Caves 4947 | -7/Factory | Entered Lower Caves 4948 | -7/Lower Caves | Encountered a Warlord checkpoint 5156 | -7/Lower Caves | Attracted the attention of an 0b10 outpost 5193 | -7/Lower Caves | Destroyed 9 combat bots 5692 | -7/Lower Caves | Discovered new exit (range 3) 5839 | -7/Lower Caves | Entered another Lower Caves area 5902 | -7/Lower Caves | Discovered new exit (range 12) 6082 | -7/Lower Caves | Identified exit to Data Miner 6163 | -7/Lower Caves | Attracted the attention of an 0b10 checkpoint 6250 | -7/Lower Caves | Encountered a Warlord checkpoint 6261 | -7/Lower Caves | Learned location of 1 exit from Factory 6412 | -7/Lower Caves | Entered Data Miner 6412 | -7/Data Miner | Discovered new exit (range 6) 6436 | -7/Data Miner | Met Data Miner 6476 | -7/Data Miner | Learned location of Section 7 (-2) 6476 | -7/Data Miner | Acquired the access code to Warlord's prototype stash 6497 | -7/Data Miner | Received God Mode back door access code from Data Miner 6557 | -7/Data Miner | Entered Proximity Caves 6559 | -6/Proximity Caves | Attracted the attention of an 0b10 checkpoint 6754 | -6/Proximity Caves | Spotted B-75 Beast 6805 | -6/Proximity Caves | Destroyed B-75 Beast 6818 | -6/Proximity Caves | Lost 3 parts (2u1w) 6922 | -6/Proximity Caves | Discovered new exit (range 6) 6985 | -6/Proximity Caves | Entered Factory 6985 | -6/Factory | Evolved 2 slots: Propulsion x1, Utility x1 6986 | -6/Factory | Identified exit to Lower Caves 6987 | -6/Factory | Identified exit to Factory 7024 | -6/Factory | Discovered new exit (range 15) 7059 | -6/Factory | Build established: Tank 7621 | -6/Factory | Sucked down chute 7621 | -6/Factory | Entered Waste 7668 | -6/Waste | Spotted C-40 Crusher 7682 | -6/Waste | Spotted C-40 Crusher 7696 | -6/Waste | Spotted C-40 Crusher 7698 | -6/Waste | Spotted C-40 Crusher 7707 | -6/Waste | Spotted C-40 Crusher 7708 | -6/Waste | Crushed by Compactor (1 part destroyed, 1 dropped) 7745 | -6/Waste | Discovered new exit (range 14) 7764 | -6/Waste | Entered Factory 7972 | -6/Factory | Identified exit to Extension 8142 | -6/Factory | Discovered exit to Factory (range 10) 8397 | -6/Factory | Build established: Scavenger-Tank 8403 | -6/Factory | Entered Extension 8405 | -6/Extension | Attached Power Bank, gained temporary slots: Power x3 8516 | -6/Extension | Lost 4 parts (2n1u1w) 8710 | -6/Extension | Lost 3 allies 9096 | -6/Extension | Rescued a captive Derelict 9096 | -6/Extension | Rescued a captive Derelict 9178 | -6/Extension | Rescued a captive Derelict 9214 | -6/Extension | Build established: Commander-Tank 9476 | -6/Extension | Spotted B-75 Beast 9490 | -6/Extension | Spotted B-75 Beast 9491 | -6/Extension | Allies destroyed B-75 Beast 9501 | -6/Extension | Allies destroyed B-75 Beast 9681 | -6/Extension | Rescued a captive Derelict 9682 | -6/Extension | Rescued a captive Derelict 9729 | -6/Extension | Lost 3 allies 9834 | -6/Extension | Lost 5 allies 9912 | -6/Extension | Rescued a captive Derelict 9914 | -6/Extension | Rescued a captive Derelict 9925 | -6/Extension | Rescued a captive Derelict 9988 | -6/Extension | Rescued A7 10000 | -6/Extension | Rescued a captive Derelict 10001 | -6/Extension | Rescued a captive Derelict 10019 | -6/Extension | Rescued a captive Derelict 10059 | -6/Extension | Discovered exit to Factory (range 10) 10061 | -6/Extension | Discovered new exit (range 6) 10126 | -6/Extension | Entered Cetus 10126 | -6/Cetus | Accompanied by 23 allies (A7) 10131 | -6/Cetus | Acquired a Cetus Manufacturing Module code from A7 10142 | -6/Cetus | Spotted Cetus Guard 10142 | -6/Cetus | Spotted Cetus Guard 10144 | -6/Cetus | Spotted Cetus Guard 10145 | -6/Cetus | Spotted Cetus Guard 10157 | -6/Cetus | Allies destroyed Cetus Guard 10158 | -6/Cetus | Allies destroyed Cetus Guard 10159 | -6/Cetus | Destroyed Cetus Guard 10161 | -6/Cetus | Allies destroyed Cetus Guard 10189 | -6/Cetus | Lost 5 allies 10215 | -6/Cetus | Started Cetus Manufacturing Module 10229 | -6/Cetus | Escorted A7 to Cetus Mainframe 10240 | -6/Cetus | Manufactured an Enhanced Grunt 10242 | -6/Cetus | Discovered new exit (range 15) 10265 | -6/Cetus | Manufactured an Enhanced Grunt 10282 | -6/Cetus | Spotted Cetus Guard 10282 | -6/Cetus | Spotted Cetus Guard 10284 | -6/Cetus | Spotted Cetus Guard 10286 | -6/Cetus | Spotted Cetus Guard 10290 | -6/Cetus | Manufactured an Enhanced Grunt 10295 | -6/Cetus | Allies destroyed Cetus Guard 10296 | -6/Cetus | Discovered exit to Factory (range 16) 10298 | -6/Cetus | Allies destroyed Cetus Guard 10305 | -6/Cetus | Allies destroyed Cetus Guard 10309 | -6/Cetus | Destroyed Cetus Guard 10311 | -6/Cetus | Met Revision 17 10315 | -6/Cetus | Manufactured an Enhanced Grunt 10334 | -6/Cetus | Lost 7 allies 10340 | -6/Cetus | Manufactured an Enhanced Grunt 10395 | -6/Cetus | Entered Archives 10395 | -6/Archives | Accompanied by 16 allies (A7) 10400 | -6/Archives | Received a hacking code to weaken MAIN.C 10449 | -6/Archives | Discovered new exit (range 16) 10453 | -6/Archives | Build established: Scavenger-Tank 10501 | -6/Archives | Discovered exit to Factory (range 15) 10657 | -6/Archives | Discovered new exit (range 16) 10759 | -6/Archives | Entered Hub_04(d) 10759 | -6/Hub_04(d) | Accompanied by 14 allies 10780 | -6/Hub_04(d) | Network Hub disabled 10812 | -6/Hub_04(d) | Lost 5 allies 10823 | -6/Hub_04(d) | Spotted Lightning 10826 | -6/Hub_04(d) | Spotted Lightning 10828 | -6/Hub_04(d) | Spotted Lightning 10845 | -6/Hub_04(d) | Destroyed Lightning 10853 | -6/Hub_04(d) | Destroyed Lightning 10872 | -6/Hub_04(d) | System corruption reached 10% 10876 | -6/Hub_04(d) | Lost 7 allies 11108 | -6/Hub_04(d) | Spotted Lightning 11108 | -6/Hub_04(d) | Spotted Lightning 11109 | -6/Hub_04(d) | First assault squad dispatched 11110 | -6/Hub_04(d) | Spotted Lightning 11150 | -6/Hub_04(d) | Lost 5 parts (2p2n1u) 11150 | -6/Hub_04(d) | Spotted B-75 Beast 11172 | -6/Hub_04(d) | Incoming assault squad redirected 11172 | -6/Hub_04(d) | Core integrity fell below 50% 11177 | -6/Hub_04(d) | System corruption reached 30% 11178 | -6/Hub_04(d) | Core integrity fell below 20% 11180 | -6/Hub_04(d) | Destroyed by Lightning with EMDS Last Messages --------------- 11170_ Kicked G-67 Veteran. 11172_ ALERT: Higher priority target reported, redirecting assault. 11172_ K-01 Serf collects debris. 11173_ Adv. Variable Charge Gun destroyed. 11173_ Backup Mainframe disabled. 11173_ Penetrated by EMDS Slug. 11173_ Sub. Shrapnel Launcher destroyed. 11173_ Carbon-fiber Leg destroyed. 11173_ Penetrated by EMDS Slug. 11176_ G-50 Soldier destroyed. 11177_ Lrg. Storage Unit destroyed. 11177_ Hvy. Rocket Launcher destroyed. 11177_ K-01 Serf collects debris. 11178_ Acquired 40 matter. 11178_ Critical hit (Burn: +37). 11178_ EMDS Slug penetrates G-67 Veteran. 11179_ K-01 Serf collects debris. 11179_ Enh. Flexi-carbon Leg destroyed. 11179_ Dropped Mni. Assault Cannon. Map ----- +----------------------------------------------------+ | %**%= % ! """ #? #???????????# ## " | | = !%=%! * = #? + "?????????# ## " | | ="!= "" """ # # ""???###### ## " | | %=%[ =% # " """ # # ""???# ^ # | | !! # %%! ## # """" # # ??+ ""# | | /%% # %= ######### """" / # ??#^ ### | | " % #???????? ?# #]]] ?# ^"" ]# | | "%!!# "#??????#######?# #]] ?# T" # | | " ! #### ## ?????? ?# ?# #]] # # | | #??# #? ?????? ## ## # % "* # | | """ ??# #? ??????+ # %+%! + | | ######?# #? "??????# B # %="!### # | | ??????? ? "??????# B! "####"#### #?# #] | | ??????? ? ???????# !! #?#######/### # | | ??????? ?? ????????# % #?# # # | | ??????? ???????????#[ [ ### + ### | | ???????????????????????# % / # #?? | | ???????????????????????# #;; +#### ! # ## | | ???????????????????????# ;# k # # | | ???????????????????????# g# # | | ???????????????????????# # # | | ???????????????????????# i h + # ### | | ???????????????????????# g!|hg ########### #?? | | ???????????????????????# *]/!g #?????????# #??? | | ???????????????????????# gi! #?????????# #??? | | ???????????????????????#k@ h/ #????# #??? | | ???????????????????????# # g ######????# #??? | | ?????????????????????? ## #?????????? #??? | | ?????????????????????" ??# #?????????? #??? | | ??????????????????? "T ??# #?????????? #??? | | ?????????????????? ???# #??????????++#??? | | ?????????????????### ???########?????????? ???? | | ???????????????????## ?????????????????????? ???? | | ????????????????????# ???????????????????????????? | | ????????????????????#????????????????????????????? | | ?????????????????????????????????????????????????? | | ?????????????????????????????????????????????????? | | ?????????????????????????????????????????????????? | | ?????????????????????????????????????????????????? | | ?????????????????????????????????????????????????? | | ?????????????????????????????????????????????????? | | ?????????????????????????????????????????????????? | | ?????????????????????????????????????????????????? | | ?????????????????????????????????????????????????? | | ?????????????????????????????????????????????????? | | ?????????????????????????????????????????????????? | | ?????????????????????????????????????????????????? | | ?????????????????????????????????????????????????? | | ?????????????????????????????????????????????????? | | ?????????????????????????????????????????????????? | +----------------------------------------------------+ Best States ------------- Heat Dissipation 64 Energy Generation 40 Energy Capacity 555 Matter Stores 300 Matter Capacity 300 Sight Range 16 Robot Scan Range 15 Terrain Scan Density 10 Armor Coverage 450 Resistance: EM 15 Evasion (%) 59 Targeting Accuracy 6 Recoil Reduction 4 Offensive Hacking 20 Item Schematics ----------------- Flamer | -7/Factory | Scanalyzed Multitool | -7/Factory | Scanalyzed Combat Drone Bay | -7/Data Miner | Free Lgt. Regenerative Plating | -7/Data Miner | Free Cld. Cesium-ion Thruster | -7/Data Miner | Free Gravity Neutralizer | -7/Data Miner | Free Imp. Lightning Gun | -7/Data Miner | Free Gyrokinetic Inverter | -7/Data Miner | Free Point Defense System | -7/Data Miner | Free Lance | -7/Data Miner | Free Imp. Recalibrator | -7/Data Miner | Free Imp. Transmission Jammer | -7/Data Miner | Free Robot Schematics ------------------ O-24 Administrator | -7/Data Miner | Free A-15 Conveyor | -7/Data Miner | Free M-28 Smith | -7/Data Miner | Free B-60 Warrior | -7/Data Miner | Free Fabricated ------------ Arm. Leg | x2 | -7/Factory | Preloaded Alien Tech Used ----------------- None Achievements -------------- None Challenges ------------ None Game ------ Seed HeartMultitargetingAutobeam Manual? 0 Play Time 01:47:06 Cumulative 386.2 hours Start 2024.03.17 @ 11:20:42 End 2024.03.17 @ 13:44:23 Sessions 1 Manual Loads 0 Difficulty Rogue Special Mode None Game No. 255 Rogue 232 Adventurer 6 Explorer 17 Win Type - Total 29 Types 21/0/4/1/0/1/1/1/0 Lore% 92 Gallery% 95 Achievement% 79 Wizard Run 0 Options --------- Layout 1 ASCII 0 Keyboard 0 Movement Numpad Keybinds 0 Fullscreen 1 Font 16/TamsynBold Map View 55x38 Zoom Use 0% Tactical HUD 1 Map Filters NONE Filters NONE Steam 1 RUN: f49edd19-b2a7-412c-ba50-ba965f1fb12a